bitfinex/quotes_ETHUSD_20251226
["timestamp","ask_amount","ask_price","bid_price","bid_amount"]
[1766763306948,0.99512481,2925.7,2924.4,2.00792]
[1766763307234,0.99512481,2925.7,2924.5,0.02565636]
[1766763307455,0.99512481,2925.7,2924.6,3.62259059]
[1766763307807,0.99512481,2925.7,2924.7,0.02565256]
[1766763308337,0.9524,2925.6,2924.3,0.002]
[1766763308504,0.9524,2925.4,2924.3,0.02766016]
[1766763308704,0.99513066,2925.3,2924.3,0.96186016]
[1766763309036,0.9524,2925.1,2924.3,0.46603119]
[1766763309203,0.9524,2924.9,2924.3,0.002]
[1766763309546,0.883,2925.2,2924.2,0.002]
[1766763309547,0.9524,2924.7,2924.2,0.002]
[1766763309835,0.99514088,2924.6,2924.2,0.002]
[1766763310242,0.99514088,2924.6,2923.6,3.42036039]
[1766763310243,0.99514088,2924.6,2923.5,1.8262]
[1766763310409,0.9524,2924.5,2923.6,0.02568384]
[1766763310609,0.99514381,2924.4,2923.6,3.44604553]
[1766763310810,0.99514381,2924.4,2923.6,0.02568384]
[1766763311014,0.99514381,2924.4,2923.4,0.002]
[1766763311216,0.99514381,2924.4,2923.4,3.42266666]
[1766763311421,1.18295819,2924.4,2923.5,0.02568866]
[1766763311616,1.18295819,2924.4,2923.4,0.02768866]
[1766763312022,1.18295819,2924.4,2923.3,0.002]
[1766763312913,1.18295819,2924.4,2923.2,0.002]
[1766763313152,1.18295819,2924.4,2923.1,0.02769598]
[1766763314229,0.9066,2924.2,2923.1,0.002]
[1766763314545,0.9066,2924.0,2923.5,0.002]
[1766763314747,0.9066,2923.8,2923.5,0.002]
[1766763314913,0.92575112,2923.9,2923.5,0.002]
[1766763314914,0.9066,2923.6,2923.5,0.002]
[1766763315115,0.04275258,2923.8,2923.5,0.002]
[1766763315329,0.94934819,2924.1,2923.5,0.002]
[1766763315542,1.7896,2924.1,2923.5,0.002]
[1766763315927,0.94934965,2924.0,2923.5,0.002]
[1766763316114,0.9066,2923.8,2923.1,0.0276973]
[1766763316314,0.94935404,2923.7,2923.1,0.0276973]
[1766763316748,0.94935404,2923.7,2922.1,0.002]
[1766763316936,0.94935404,2923.7,2922.4,0.9865]
[1766763317135,0.9257555,2923.6,2922.4,0.9865]
[1766763317338,0.9257555,2923.6,2922.6,3.42156878]
[1766763317339,0.0427555,2923.6,2922.6,3.42156878]
[1766763317541,0.0427555,2923.6,2922.5,0.44084127]
[1766763317542,0.9493555,2923.6,2922.5,0.44084127]
[1766763317844,0.9066,2923.5,2922.6,3.42150694]
[1766763318047,0.9066,2924.0,2922.7,1.01871493]
[1766763318344,0.04275112,2923.9,2922.7,1.01871493]
[1766763318536,0.04274819,2924.1,2922.7,1.01871493]
[1766763318732,0.94934819,2924.1,2922.9,0.9845]
[1766763319043,0.94934819,2924.1,2923.0,1.01871142]
[1766763319244,0.94934819,2924.1,2922.8,1.70608703]
[1766763319442,0.94934819,2924.1,2922.6,6.84311783]
[1766763319443,0.94934819,2924.1,2922.9,0.03421259]
[1766763319647,0.94934819,2924.1,2922.8,0.03421376]
[1766763319849,0.9066,2923.9,2922.8,0.03421376]
[1766763320154,0.9066,2923.7,2922.4,0.002]
[1766763320359,0.9066,2923.5,2922.8,3.42134695]
[1766763320522,0.04275595,2923.4,2922.9,0.03421259]
[1766763320718,0.883,2923.8,2922.9,0.9845]
[1766763320923,0.04275404,2923.7,2923.0,0.03421142]
[1766763321123,0.04275404,2923.7,2923.0,0.34555442]
[1766763321124,0.9066,2923.7,2923.0,0.34555442]
[1766763321329,1.7896,2924.0,2923.0,0.34555442]
[1766763321529,0.94935112,2923.9,2923.0,0.34555442]
[1766763321740,0.94935112,2923.9,2923.1,0.03421025]
[1766763322129,0.94935112,2923.9,2923.0,0.34555442]
[1766763322334,0.9066,2923.7,2922.9,0.03421259]
[1766763322530,0.9493555,2923.6,2922.9,3.45546486]
[1766763322731,0.9066,2923.6,2923.0,3.42110555]
[1766763322949,0.9066,2924.0,2923.1,3.45519124]
[1766763323151,0.04275112,2923.9,2923.1,3.45519124]
[1766763323359,0.9066,2924.0,2923.2,0.34551912]
[1766763323523,6.47466535,2925.6,2923.3,1.01870791]
[1766763323524,0.9066,2924.8,2923.3,1.01870791]
[1766763323724,0.9066,2925.6,2923.5,0.9845]
[1766763324052,0.9066,2925.4,2924.0,0.9845]
[1766763324219,0.9066,2925.2,2924.1,0.81666647]
[1766763324420,0.04273358,2925.1,2924.2,0.9845]
[1766763324637,0.04273358,2925.1,2924.3,0.03419621]
[1766763324834,0.9066,2925.0,2924.3,0.03419621]
[1766763325049,0.0427365,2924.9,2924.2,0.03419738]
[1766763325421,0.9493365,2924.9,2924.2,0.03419738]
[1766763326152,0.9066,2924.9,2924.2,7.29730998]
[1766763326340,0.9066,2925.6,2924.2,7.2631126]
[1766763326634,0.94932773,2925.5,2924.3,0.9845]
[1766763326833,0.94932773,2925.5,2924.2,10.68285133]
[1766763326834,0.94932773,2925.5,2924.4,1.01869504]
[1766763327261,0.94932773,2925.5,2924.4,0.9845]
[1766763327555,1.1326605,2925.5,2924.4,0.9845]
[1766763327754,1.1326605,2925.5,2924.2,8.1551126]
[1766763327755,1.1326605,2925.5,2924.5,0.03419387]
[1766763327960,1.1326605,2925.5,2924.3,0.03419621]
[1766763328131,1.1326605,2925.5,2924.3,3.45377927]
[1766763328527,1.1326605,2925.5,2924.3,0.03419621]
[1766763328758,0.9066,2925.3,2924.3,0.03419621]
[1766763328958,0.9066,2925.1,2924.3,0.03419621]
[1766763329251,0.9066,2924.9,2924.1,0.002]
[1766763329418,0.9066,2924.9,2923.2,3.76635728]
[1766763329419,0.94933796,2924.8,2923.9,0.03420089]
[1766763329622,0.94933796,2924.8,2923.8,3.42016566]
[1766763329855,1.13257176,2924.8,2923.9,3.45424354]
[1766763330148,1.13257176,2924.8,2923.9,0.03420089]
[1766763330526,1.13257176,2924.8,2923.8,0.03420206]
[1766763330747,1.13257176,2924.8,2923.8,3.42020023]
[1766763331067,1.13257176,2924.8,2923.9,0.03420089]
[1766763331229,1.13257176,2924.8,2923.5,3.42047062]
[1766763331429,1.13257176,2924.8,2923.6,3.42894961]
[1766763331655,1.13257176,2924.8,2923.6,0.00854058]
[1766763331656,0.9066,2924.6,2923.6,0.00854058]
[1766763331965,0.94934234,2924.5,2923.6,3.42891466]
[1766763332459,0.94934234,2924.5,2923.2,4.40540859]
[1766763332655,0.94934234,2924.5,2923.2,7.82631718]
[1766763333431,0.883,2924.4,2923.3,0.99304935]
[1766763333658,0.04274527,2924.3,2923.3,0.99304935]
[1766763333862,0.94934527,2924.3,2923.4,0.78348665]
[1766763334556,0.94934527,2924.3,2923.5,0.00854877]
[1766763335134,0.94934527,2924.3,2923.1,3.52363045]
[1766763335334,0.94934527,2924.3,2923.1,0.10263]
[1766763336540,0.94934527,2924.3,2923.1,3.52364896]
[1766763336739,0.9066,2924.1,2923.1,3.52364896]
[1766763336955,0.9066,2923.9,2923.1,3.52364896]
[1766763337168,0.9066,2923.7,2923.1,0.10263]
[1766763337466,0.9493555,2923.6,2923.1,0.10263]
[1766763338377,0.9493555,2923.6,2923.0,0.002]
[1766763338378,0.9493555,2923.6,2923.0,3e-05]
[1766763340972,0.9493555,2923.6,2922.4,0.002]
[1766763341134,0.9066,2923.2,2922.2,0.002]
[1766763341339,0.96126535,2923.0,2921.5,0.002]
[1766763341669,0.96126535,2923.0,2921.3,0.9845]
[1766763341670,0.9066,2922.6,2921.3,0.9845]
[1766763341976,0.9066,2922.4,2921.2,3.42525016]
[1766763342138,0.9066,2922.2,2921.3,0.34252502]
[1766763342480,0.94937745,2922.1,2921.2,0.002]
[1766763343135,0.94937745,2922.1,2920.2,5.83209202]
[1766763343136,0.94937745,2922.1,2920.1,0.002]
[1766763343336,0.9066,2921.5,2920.1,0.002]
[1766763343552,0.9066,2921.3,2920.1,0.002]
[1766763343769,0.9066,2921.1,2920.1,0.002]
[1766763343970,0.883,2921.2,2920.3,0.9865]
[1766763344193,0.883,2921.2,2920.3,0.002]
[1766763344194,0.9895,2921.0,2920.3,0.002]
[1766763344501,0.19152921,2921.0,2920.3,0.002]
[1766763344792,0.04279502,2920.9,2920.3,4.32660572]
[1766763344982,0.04279209,2921.1,2920.3,4.32660572]
[1766763345188,0.04279209,2921.1,2920.3,0.9023]
[1766763345506,1.03229209,2921.1,2920.3,0.002]
[1766763345676,0.9895,2920.9,2920.1,0.002]
[1766763345867,0.04279649,2920.8,2920.6,0.002]
[1766763346084,0.92679649,2920.8,2920.1,0.002]
[1766763346691,0.92679649,2920.8,2919.5,0.002]
[1766763346692,0.9895,2920.7,2919.5,0.002]
[1766763346993,0.9895,2920.7,2919.8,3.42489129]
[1766763346994,0.19162965,2920.6,2919.8,3.42489129]
[1766763347305,0.23442907,2920.6,2919.8,3.42489129]
[1766763347606,0.04279942,2920.6,2919.8,3.42489129]
[1766763347767,0.04279942,2920.6,2919.8,6.8497834]
[1766763347970,0.92679942,2920.6,2919.8,3.42489129]
[1766763348800,0.92679942,2920.6,2919.5,7.83768808]
[1766763349165,0.9677,2920.5,2919.5,7.83768808]
[1766763349365,0.04280235,2920.4,2919.6,0.78376881]
[1766763349562,0.9677,2921.1,2919.7,1.01945009]
[1766763349863,1.8943536,2921.0,2919.7,1.01945009]
[1766763350493,0.9677,2920.9,2919.7,1.01945009]
[1766763350808,0.0426536,2920.8,2919.8,7.83498422]
[1766763351000,0.0426536,2920.8,2919.9,0.82117117]
[1766763351379,0.884,2920.8,2920.0,0.9852]
[1766763351588,0.884,2920.8,2920.1,0.0342454]
[1766763351899,0.9266536,2920.8,2920.1,0.0342454]
[1766763352206,0.9266536,2920.8,2920.1,1.0194454]
[1766763352207,0.0426536,2920.8,2920.1,1.0194454]
[1766763352779,0.0426536,2920.8,2920.2,3.42442298]
[1766763352980,0.0426536,2920.8,2920.3,0.44438684]
[1766763353719,0.0426536,2920.8,2919.9,0.78692343]
[1766763353720,0.9677,2920.7,2919.9,0.78692343]
[1766763353864,0.0426536,2920.6,2919.8,0.03624892]
[1766763354060,0.0426536,2920.6,2920.1,3.42452774]
[1766763354280,0.9266536,2920.6,2919.8,4.41207631]
[1766763354506,0.9266536,2920.6,2919.9,3.45894682]
[1766763354675,0.9266536,2920.6,2920.0,3.42462235]
[1766763354877,0.884,2920.6,2919.9,3.4590111]
[1766763355076,0.9677,2921.1,2919.9,3.4590111]
[1766763355077,0.9677,2921.1,2920.0,3.42462613]
[1766763355278,0.9677,2920.9,2920.0,3.4588727]
[1766763355484,0.9266536,2920.8,2920.0,6.88353023]
[1766763355809,0.0426536,2920.8,2920.0,3.42462613]
[1766763355996,0.0426536,2920.8,2920.1,0.76806337]
[1766763356298,0.9677,2920.8,2920.1,0.76806337]
[1766763356503,0.0426536,2920.7,2920.0,3.45880271]
[1766763356721,1.0103536,2920.7,2920.0,3.45888875]
[1766763356872,0.0426536,2920.6,2920.1,0.9852]
[1766763357066,0.0426536,2920.6,2920.2,0.78687463]
[1766763358082,0.884,2920.8,2920.2,0.78687463]
[1766763358267,0.9677,2921.6,2920.3,1.01944305]
[1766763358468,0.9677,2921.4,2920.4,0.18063177]
[1766763358668,0.9677,2921.4,2920.2,0.78687463]
[1766763358897,0.9677,2921.4,2920.1,0.0342454]
[1766763359107,0.9677,2921.4,2920.1,3.45875233]
[1766763359612,0.05466535,2921.9,2920.1,4.44395233]
[1766763359613,0.9677,2921.2,2920.1,4.44395233]
[1766763359917,1.8517,2921.1,2920.1,4.44395233]
[1766763360116,0.9677,2921.0,2920.2,0.03424422]
[1766763360265,0.9677,2921.0,2920.3,0.78684914]
[1766763360470,0.9677,2921.0,2920.0,0.002]
[1766763361115,0.9677,2921.0,2919.5,0.002]
[1766763361267,19.341622,2920.7,2919.2,0.03425596]
[1766763361586,0.9677,2920.6,2919.0,3.42773775]
[1766763361915,0.9677,2920.4,2919.2,3.42552629]
[1766763362113,0.9677,2920.4,2919.1,0.03425713]
[1766763362267,0.9677,2920.4,2919.0,0.002]
[1766763362668,1.02236535,2920.4,2918.8,0.03626065]
[1766763362907,0.9677,2920.2,2918.8,0.002]
[1766763363121,0.19063654,2920.3,2918.5,3.42638641]
[1766763363122,0.01705467,2920.1,2918.5,3.42638641]
[1766763363301,0.9677,2920.0,2918.4,0.03626535]
[1766763363510,0.9677,2919.8,2918.4,0.03626535]
[1766763363819,0.9677,2919.6,2918.6,3.4262918]
[1766763363974,0.9677,2919.4,2918.6,3.4262918]
[1766763364177,1.86875467,2919.3,2918.6,3.4262918]
[1766763364367,1.86875467,2919.3,2918.5,0.03426417]
[1766763364582,1.86875467,2919.3,2918.4,0.002]
[1766763364583,1.86875467,2919.3,2918.4,3.46276637]
[1766763364785,0.9677,2919.2,2918.5,3.42637122]
[1766763365004,0.98475467,2919.1,2918.5,3.42636125]
[1766763365170,0.98475467,2919.1,2918.4,3.42845715]
[1766763365566,0.98475467,2919.1,2918.4,6.85499223]
[1766763365805,0.98475467,2919.1,2918.4,3.42845715]
[1766763366008,0.98475467,2919.1,2918.4,0.002]
[1766763366308,0.885,2919.0,2918.4,3.4285317]
[1766763366489,0.01705467,2918.9,2918.4,0.002]
[1766763366694,0.01705467,2918.9,2918.4,3.42844329]
[1766763369207,0.01705467,2918.9,2918.4,0.002]
[1766763369712,0.01705467,2918.9,2918.4,0.37101554]
[1766763370521,0.01705467,2918.9,2918.4,0.002]
[1766763370875,0.9677,2918.9,2918.4,0.002]
[1766763371084,0.01705467,2918.8,2918.4,0.002]
[1766763371284,0.01705467,2918.8,2918.3,0.26155218]
[1766763372110,0.98475467,2918.8,2918.1,0.03426887]
[1766763372313,0.98475467,2918.8,2918.1,3.42688708]
[1766763372509,0.98475467,2918.8,2918.3,3.42664665]
[1766763372714,0.98475467,2918.8,2918.1,0.68539992]
[1766763372877,0.01705467,2918.7,2918.4,0.9852]
[1766763373077,0.885,2919.0,2918.4,1.01946535]
[1766763373281,0.885,2919.0,2918.4,4.44597352]
[1766763373808,0.885,2919.1,2918.4,4.44597352]
[1766763374234,0.885,2919.1,2918.4,5.2332282]
[1766763374401,1.8825,2919.1,2918.3,0.03426652]
[1766763374598,0.9975,2919.0,2918.3,0.03426652]
[1766763375019,0.9975,2919.0,2918.4,3.42651752]
[1766763375220,0.885,2919.1,2918.4,3.42651752]
[1766763375537,0.885,2919.1,2918.4,3.42851752]
[1766763376027,0.885,2919.1,2918.5,0.9226]
[1766763376215,0.9975,2919.8,2918.6,0.9226]
[1766763376426,0.885,2919.7,2918.6,0.956863]
[1766763376730,0.9975,2920.2,2918.6,0.956863]
[1766763376891,0.9975,2920.5,2918.6,0.956863]
[1766763377091,0.9975,2920.3,2918.8,0.9226]
[1766763377301,0.885,2920.2,2919.2,0.9226]
[1766763377621,0.001,2920.8,2919.3,0.95685478]
[1766763377806,0.001,2920.8,2919.5,0.9226]
[1766763378022,0.001,2920.8,2919.7,0.9226]
[1766763378186,0.001,2920.8,2919.9,0.9226]
[1766763378392,0.9985,2920.8,2919.8,0.03424892]
[1766763378626,0.9985,2920.8,2919.6,0.03425126]
[1766763379134,0.9985,2920.8,2919.7,0.9226]
[1766763379300,0.9985,2920.8,2919.9,4.34736928]
[1766763379301,1.8835,2920.8,2919.9,4.34736928]
[1766763379502,1.8835,2920.8,2920.0,0.95684657]
[1766763379503,2.07185,2920.8,2920.0,0.95684657]
[1766763380401,1.18685,2920.8,2920.0,0.95684657]
[1766763380757,0.001,2920.8,2920.0,0.95684657]
[1766763381524,0.001,2920.8,2920.1,7.7716805]
[1766763381692,0.001,2920.8,2920.2,0.95684422]
[1766763382295,0.9975,2921.7,2920.3,0.9226]
[1766763382622,0.885,2921.6,2920.5,0.9226]
[1766763382831,0.885,2921.6,2920.6,0.95683953]
[1766763383119,0.9975,2921.7,2920.6,0.95683953]
[1766763383421,0.885,2921.6,2920.6,0.95683953]
[1766763383620,0.885,2921.6,2920.0,0.894]
[1766763383621,0.9975,2921.5,2920.0,3.42455367]
[1766763383927,0.9975,2921.3,2919.8,4.34748448]
[1766763384304,0.9975,2921.1,2919.4,4.34786269]
[1766763384503,5.53778925,2921.5,2918.9,0.18166]
[1766763384504,0.9975,2920.9,2919.5,0.03425244]
[1766763384704,0.9975,2920.9,2919.6,3.42502962]
[1766763385024,0.9975,2920.9,2919.5,0.03425244]
[1766763385224,0.9975,2920.9,2919.5,3.42522755]
[1766763385531,0.885,2921.0,2919.7,3.4250014]
[1766763385532,0.9975,2920.7,2919.7,3.4250014]
[1766763385700,0.9975,2921.2,2919.8,0.95684892]
[1766763385924,0.885,2921.1,2919.8,0.95684892]
[1766763386237,0.05466535,2921.6,2919.8,0.95684892]
[1766763386238,0.9975,2921.5,2919.8,0.95684892]
[1766763386452,0.9975,2921.3,2919.8,0.03424892]
[1766763386827,0.9975,2921.3,2919.8,0.95684892]
[1766763387140,0.9975,2921.1,2919.8,0.95684892]
[1766763387555,0.9975,2921.1,2919.9,3.42477482]
[1766763387712,1.18575,2921.0,2920.0,0.03424657]
[1766763387917,0.9975,2920.8,2919.7,3.42495854]
[1766763388222,0.9975,2920.8,2919.4,0.9226]
[1766763388438,0.9975,2920.8,2919.5,3.425166]
[1766763388647,0.9975,2920.8,2919.6,3.42509796]
[1766763388812,0.9975,2920.6,2919.6,3.42509796]
[1766763389139,0.9975,2920.6,2919.6,3.42507053]
[1766763389340,0.9975,2920.6,2919.7,3.42500103]
[1766763389647,0.885,2920.5,2919.8,3.42487538]
[1766763389939,0.885,2920.5,2919.6,3.42504699]
[1766763390143,0.885,2920.5,2919.7,0.03425009]
[1766763390510,1.8825,2920.5,2919.2,0.95685596]
[1766763390712,0.9975,2920.4,2919.2,0.95685596]
[1766763390951,0.9975,2920.4,2919.5,3.42522981]
[1766763391132,0.885,2920.3,2919.4,3.45956738]
[1766763391336,0.9975,2920.2,2919.3,0.03425478]
[1766763391541,0.9975,2920.2,2919.2,4.38242033]
[1766763391542,1.07325,2920.1,2919.2,4.38242033]
[1766763391714,0.885,2920.1,2919.3,3.42546863]
[1766763391914,0.885,2920.1,2919.4,3.42533655]
[1766763392255,0.885,2920.1,2919.2,4.34817287]
[1766763392542,0.9975,2920.0,2918.4,1.70237629]
[1766763392858,0.9975,2919.8,2918.8,3.42605912]
[1766763393160,0.9975,2919.6,2918.4,0.002]
[1766763393387,0.9975,2919.4,2918.4,0.002]
[1766763393864,0.885,2919.3,2918.0,0.9226]
[1766763394033,0.9975,2920.0,2918.4,0.9226]
[1766763394233,1.8825,2919.9,2918.6,0.9226]
[1766763394465,0.9975,2919.8,2918.5,0.03426417]
[1766763394653,0.9975,2919.8,2918.2,4.34931823]
[1766763394849,0.9975,2919.6,2918.3,0.46919834]
[1766763395361,0.9975,2919.4,2918.3,0.46919834]
[1766763395737,0.885,2919.3,2918.3,0.46919834]
[1766763395935,0.885,2919.3,2918.4,0.002]
[1766763396137,0.885,2919.3,2918.4,3.42853508]
[1766763396337,0.9975,2919.4,2918.5,0.42403751]
[1766763396536,0.05466535,2920.3,2918.7,0.9226]
[1766763396537,0.9975,2920.1,2918.7,0.9226]
[1766763396754,0.9975,2919.9,2918.8,0.03426065]
[1766763397465,0.9975,2920.3,2918.9,0.95685948]
[1766763397670,0.9985,2920.8,2919.2,0.9226]
[1766763397834,0.885,2920.6,2919.4,0.9226]
[1766763398036,0.885,2920.6,2919.6,0.9226]
[1766763398373,0.885,2920.6,2919.7,3.4592595]
[1766763398577,0.885,2920.6,2919.8,0.43818595]
[1766763398934,0.001,2920.8,2919.9,0.95684774]
[1766763399841,0.001,2920.8,2920.0,0.03424657]
[1766763400263,0.9985,2920.8,2919.4,0.9226]
[1766763400470,1.18685,2920.8,2919.6,3.42504646]
[1766763400775,1.18685,2920.8,2919.5,3.4594919]
[1766763400987,1.18685,2920.8,2919.5,0.95685244]
[1766763401357,1.18685,2920.8,2919.5,4.38202486]
[1766763401592,1.18685,2920.8,2919.5,0.03425244]
[1766763402091,1.18685,2920.8,2919.5,3.45947657]
[1766763402295,1.18685,2920.8,2919.5,0.03425244]
[1766763402598,1.18685,2920.8,2919.3,3.45966209]
[1766763402753,1.18685,2920.8,2919.3,3.42540731]
[1766763403186,1.18685,2920.8,2919.5,0.002]
[1766763403797,0.9597,2920.6,2919.5,0.002]
[1766763404096,1.16747,2920.5,2919.5,0.002]
[1766763405301,1.16747,2920.5,2919.1,4.34828999]
[1766763405302,1.16747,2920.5,2919.0,3.42578389]
[1766763405512,1.16747,2920.5,2919.1,0.97955713]
[1766763405796,0.983,2920.3,2919.1,0.03425713]
[1766763405963,0.983,2920.3,2918.6,4.37152984]
[1766763406162,0.983,2920.1,2918.7,0.03426182]
[1766763406465,0.983,2920.1,2918.4,0.03626535]
[1766763406673,0.983,2920.1,2918.4,0.002]
[1766763406995,0.983,2920.1,2918.5,0.9453]
[1766763407168,0.983,2920.1,2918.7,3.42617457]
[1766763407369,1.868,2920.0,2918.8,0.97956065]
[1766763408483,0.885,2919.9,2918.9,3.42594813]
[1766763408686,0.885,2919.9,2919.0,0.0342583]
[1766763409465,0.983,2920.0,2919.0,0.0342583]
[1766763409789,0.885,2919.9,2919.0,0.9795583]
[1766763409995,1.0718,2919.9,2919.0,0.9795583]
[1766763410592,1.0718,2919.9,2919.0,4.40534286]
[1766763411201,0.885,2919.9,2919.1,0.9453]
[1766763411498,0.886,2920.0,2919.2,0.97955596]
[1766763412117,0.886,2920.0,2919.2,0.9453]
[1766763415603,1.869,2920.0,2919.2,0.9453]
[1766763416217,0.983,2919.9,2918.9,0.03425948]
[1766763416406,0.983,2919.9,2919.1,3.42561572]
[1766763416407,0.1869,2919.8,2919.1,3.42561572]
[1766763416610,0.001,2920.0,2919.3,0.9453]
[1766763416806,0.983,2920.7,2919.3,0.97955478]
[1766763416995,1.868,2920.7,2919.3,0.97955478]
[1766763417317,0.983,2920.6,2919.5,0.9453]
[1766763417617,0.983,2920.6,2919.6,0.97955126]
[1766763417819,0.885,2920.7,2919.6,0.97955126]
[1766763418020,0.885,2920.7,2919.7,0.9453]
[1766763418219,0.885,2920.7,2919.9,0.9453]
[1766763418396,0.983,2920.6,2919.5,0.97955244]
[1766763418716,1.1699,2920.6,2919.6,0.21051847]
[1766763419021,1.1699,2920.6,2919.5,4.40476406]
[1766763419655,1.1699,2920.6,2919.1,0.9453]
[1766763419929,1.1699,2920.6,2919.2,0.03425596]
[1766763419930,0.983,2920.5,2919.2,0.03425596]
[1766763420249,0.24156535,2920.6,2918.9,0.9453]
[1766763420250,0.983,2920.3,2918.9,0.9453]
[1766763420392,0.983,2920.6,2919.6,3.42509569]
[1766763420593,0.983,2920.6,2919.5,4.40475066]
[1766763420594,0.885,2920.5,2919.5,4.40475066]
[1766763420905,0.983,2920.4,2919.3,3.42545997]
[1766763421102,0.983,2920.4,2919.4,0.03425361]
[1766763421303,0.001,2920.8,2919.6,0.9453]
[1766763421304,0.984,2920.8,2919.6,0.9453]
[1766763421498,0.885,2920.5,2919.7,0.03425009]
[1766763422096,0.984,2920.8,2919.7,0.97955009]
[1766763422394,1.869,2920.8,2919.8,0.9453]
[1766763422716,1.869,2920.8,2919.9,0.03424774]
[1766763422717,0.885,2920.7,2919.9,0.03424774]
[1766763423294,0.001,2920.8,2919.9,0.97954774]
[1766763423504,0.001,2920.8,2920.0,0.9453]
[1766763423705,0.001,2921.1,2920.2,0.9453]
[1766763424038,0.983,2921.7,2920.4,0.9453]
[1766763424329,0.983,2921.7,2920.6,0.9453]
[1766763424531,0.983,2921.7,2920.7,0.97953836]
[1766763424737,0.885,2921.8,2920.9,0.9453]
[1766763425043,0.001,2922.0,2921.1,0.9453]
[1766763425218,0.001,2922.0,2921.3,0.9453]
[1766763425536,0.001,2922.0,2921.5,0.9453]
[1766763425702,0.001,2922.3,2921.5,0.9453]
[1766763425914,0.885,2922.5,2921.6,0.97952782]
[1766763426111,0.983,2922.9,2921.6,0.97952782]
[1766763426354,0.885,2922.7,2921.6,0.97952782]
[1766763427157,0.885,2922.7,2921.7,0.9453]
[1766763427321,0.885,2922.7,2921.8,0.03422547]
[1766763428242,0.885,2922.7,2921.9,0.9453]
[1766763428614,0.983,2922.9,2921.9,0.9453]
[1766763428853,0.885,2922.7,2921.9,0.9453]
[1766763429356,0.885,2922.7,2921.8,0.03422547]
[1766763429517,0.984,2922.4,2920.9,0.9453]
[1766763429854,0.885,2922.3,2921.2,0.9453]
[1766763430016,0.22779815,2922.2,2921.2,0.9453]
[1766763430413,0.22779815,2922.2,2921.3,0.03423133]
[1766763430614,0.22779815,2922.2,2921.3,0.97953133]
[1766763431265,0.22779815,2922.2,2921.3,4.40256855]
[1766763431557,0.001,2922.4,2921.4,0.9453]
[1766763431760,0.001,2922.4,2921.6,0.9453]
[1766763431925,0.001,2922.4,2921.7,0.03422664]
[1766763432552,0.001,2922.2,2921.6,0.9453]
[1766763432940,0.984,2922.2,2921.1,0.97953367]
[1766763433258,0.984,2922.2,2921.1,1.4198451]
[1766763433755,3.42311608,2922.2,2920.5,3.4240016]
[1766763433969,0.983,2922.0,2920.6,0.03423953]
[1766763434252,0.9192,2921.9,2920.9,0.963]
[1766763434466,0.9833,2921.8,2920.5,3.42402395]
[1766763434691,0.9833,2921.6,2920.6,0.03423953]
[1766763434821,0.0342,2921.5,2920.6,4.42111511]
[1766763435025,0.885,2921.5,2920.7,0.963]
[1766763435436,0.9192,2921.5,2920.6,0.03423953]
[1766763435651,1.0175,2921.4,2920.4,0.03424188]
[1766763435863,1.0175,2921.4,2920.6,3.42392504]
[1766763436074,1.0175,2921.4,2920.7,0.03423836]
[1766763436275,0.0342,2921.4,2920.7,0.34582088]
[1766763436579,0.0342,2921.4,2920.5,0.963]
[1766763436782,0.9192,2921.4,2920.6,0.03423953]
[1766763438148,1.9025,2921.4,2920.7,0.03423836]
[1766763438470,1.9025,2921.4,2920.6,0.03423953]
[1766763439572,2.09275,2921.4,2920.6,0.03423953]
[1766763439783,0.9833,2921.3,2920.1,0.963]
[1766763440080,0.0342,2921.2,2920.2,0.03424422]
[1766763440280,0.0342,2921.2,2920.2,0.99724422]
[1766763441083,1.0175,2921.2,2920.2,1.43943088]
[1766763441284,1.0175,2921.2,2920.5,0.002]
[1766763444287,1.0175,2921.2,2919.9,0.893]
[1766763444586,1.0175,2921.2,2920.0,0.03424657]
[1766763444790,1.0175,2921.2,2919.8,0.99724892]
[1766763445155,1.23224154,2921.2,2920.0,0.963]
[1766763445485,0.0342,2921.2,2920.3,0.963]
[1766763445657,0.9833,2922.1,2920.6,3.42395398]
[1766763445858,0.9833,2922.1,2920.7,0.99723836]
[1766763446370,0.885,2922.0,2920.7,0.99723836]
[1766763446567,0.9833,2921.9,2920.7,0.99723836]
[1766763446771,0.9833,2921.7,2920.7,0.963]
[1766763447071,0.9833,2921.7,2920.8,0.03423719]
[1766763447570,0.9833,2921.7,2920.3,3.42423848]
[1766763447770,0.9833,2921.7,2920.3,0.963]
[1766763447964,0.9833,2921.7,2920.4,0.03424188]
[1766763448191,0.9833,2921.7,2920.5,0.44215392]
[1766763448392,0.9833,2921.7,2920.6,0.03423953]
[1766763448587,0.9833,2921.7,2920.4,0.03424188]
[1766763448798,0.9833,2921.7,2920.3,0.963]
[1766763449099,0.885,2921.6,2920.4,0.99724188]
[1766763449999,0.885,2921.6,2920.5,0.965]
[1766763450301,1.8683,2921.6,2920.6,0.03423953]
[1766763450595,2.073813,2921.6,2920.6,0.03423953]
[1766763450995,0.9833,2921.9,2920.8,0.963]
[1766763451197,0.001,2922.0,2921.0,0.963]
[1766763451382,0.001,2922.2,2921.1,0.03423367]
[1766763451584,0.9833,2922.1,2920.8,0.963]
[1766763451790,0.9833,2922.1,2920.9,0.03423602]
[1766763451984,0.9833,2922.1,2920.9,4.42078678]
[1766763452192,0.9833,2922.1,2921.0,0.44207868]
[1766763452380,0.9833,2922.1,2921.1,0.03423367]
[1766763452798,0.885,2922.1,2921.2,0.963]
[1766763453309,0.9833,2922.0,2920.7,0.963]
[1766763453474,0.9833,2922.0,2920.8,1.43593208]
[1766763453895,0.9833,2922.0,2920.9,0.963]
[1766763454504,0.9833,2922.0,2921.0,0.03423485]
[1766763455212,0.885,2921.9,2921.0,0.99723485]
[1766763455386,0.885,2921.9,2921.0,0.963]
[1766763455914,0.885,2921.8,2921.1,0.03423367]
[1766763456606,0.9833,2922.0,2921.1,0.03423367]
[1766763456811,0.001,2922.2,2921.1,0.99723367]